bitfinex-derivatives/quotes_SOLF0:USTF0_20251119
["timestamp","ask_amount","ask_price","bid_price","bid_amount"]
[1763522921548,9.5712,140.7,140.69,37.38]
[1763522922045,9.5712,140.7,140.67,40.35]
[1763522922245,9.5712,140.7,140.68,2.97]
[1763522922543,9.62041937,140.7,140.68,3.02012017]
[1763522923145,9.62041937,140.7,140.68,4.91793573]
[1763522923949,3.17,140.69,140.68,0.05012017]
[1763522924548,9.62041937,140.7,140.68,0.05012017]
[1763522925545,0.04921937,140.7,140.69,1.89781556]
[1763522925746,0.04921937,140.7,140.69,4.86781556]
[1763522926144,0.04921937,140.7,140.69,1.89781556]
[1763522926447,3.21921937,140.7,140.69,1.89781556]
[1763522926650,0.04921937,140.7,140.69,1.89781556]
[1763522927149,0.04921937,140.7,140.69,4.86781556]
[1763522927348,6.3999,140.73,140.7,2.97]
[1763522927548,6.3999,140.73,140.72,1.89781556]
[1763522928245,9.5699,140.73,140.7,4.86781556]
[1763522928447,6.4004,140.72,140.7,4.91517702]
[1763522928749,3.17,140.73,140.7,4.91517702]
[1763522929049,3.17,140.73,140.71,2.97]
[1763522929353,3.17,140.73,140.72,1.89781556]
[1763522929751,9.5694,140.75,140.72,4.86781556]
[1763522930244,6.3994,140.75,140.73,2.97]
[1763522930450,9.5694,140.75,140.73,2.97]
[1763522931049,9.5694,140.75,140.72,1.89781556]
[1763522931355,3.17,140.74,140.72,1.89781556]
[1763522933147,3.17,140.74,140.73,37.38]
[1763522933443,9.5694,140.75,140.73,37.38]
[1763522934353,3.17,140.73,140.72,1.89781556]
[1763522934656,3.17,140.73,140.72,39.27781556]
[1763522934955,3.17,140.73,140.71,0.05140579]
[1763522935253,3.17,140.73,140.71,40.40140579]
[1763522935858,9.5699,140.73,140.71,40.40140579]
[1763522936754,9.5703,140.72,140.71,37.43140579]
[1763522936959,3.17,140.74,140.71,37.43140579]
[1763522937149,6.4001,140.73,140.71,37.43140579]
[1763522937354,9.5701,140.73,140.71,37.43140579]
[1763522941158,3.17,140.72,140.71,37.43140579]
[1763522941362,9.5703,140.72,140.71,37.43140579]
[1763522941556,9.5703,140.72,140.71,0.05140579]
[1763522942057,99.5431,140.75,140.67,1.89781556]
[1763522942058,9.5719,140.69,140.67,1.89781556]
[1763522942253,9.5719,140.69,140.67,2.97]
[1763522942766,9.5719,140.69,140.66,1.89781556]
[1763522942953,9.62266834,140.69,140.66,42.30221219]
[1763522943361,0.05076834,140.69,140.67,3.21]
[1763522947369,6.45246834,140.69,140.67,3.21]
[1763522947763,9.56246834,140.69,140.67,3.21]
[1763522949069,3.16076834,140.69,140.67,3.21]
[1763522952573,0.05076834,140.69,140.67,3.21]
[1763522952871,3.16076834,140.69,140.67,3.21]
[1763522953373,0.05076834,140.69,140.67,3.21]
[1763522953972,0.05076834,140.69,140.67,40.59]
[1763522954678,6.45246834,140.69,140.67,40.59]
[1763522955173,6.45246834,140.69,140.67,3.21]
[1763522955671,9.90246834,140.69,140.67,40.59]
[1763522955872,9.90246834,140.69,140.67,3.21]
[1763522956067,6.4021,140.68,140.66,40.64439663]
[1763522956266,0.39076834,140.69,140.67,3.21]
[1763522956571,3.50076834,140.69,140.67,3.21]
[1763522957079,9.90256834,140.69,140.67,3.21]
[1763522957276,3.50076834,140.69,140.67,3.21]
[1763522957577,3.50076834,140.69,140.66,40.64439663]
[1763522957779,9.90246834,140.69,140.67,3.21]
[1763522958875,6.79246834,140.69,140.67,3.21]
[1763522959076,0.39076834,140.69,140.67,3.21]
[1763522961177,0.39076834,140.69,140.67,40.59]
[1763522961373,0.39076834,140.69,140.68,3.21]
[1763522962280,0.39076834,140.69,140.67,37.38]
[1763522962878,9.84246834,140.69,140.66,3.26439663]
[1763522963179,9.84246834,140.69,140.67,37.38]
[1763522963884,6.4021,140.68,140.67,37.38]
[1763522964585,6.4021,140.68,140.66,3.26439663]
[1763522964785,6.4021,140.68,140.66,40.64439663]
[1763522966487,6.4021,140.68,140.67,3.22]
[1763522972791,0.39076834,140.69,140.67,3.22]
[1763522973589,3.57076834,140.69,140.67,3.22]
[1763522973789,9.97246834,140.69,140.67,3.22]
[1763522974791,3.18,140.68,140.66,40.63439663]
[1763522974991,0.39076834,140.69,140.67,3.2]
[1763522975288,3.57076834,140.69,140.67,3.2]
[1763522975687,0.39076834,140.69,140.67,3.2]
[1763522977693,6.3999,140.73,140.67,3.2]
[1763522977893,6.3999,140.73,140.7,3.2]
[1763522978497,6.3999,140.73,140.7,3.24889127]
[1763522980495,9.5799,140.73,140.7,3.24889127]
[1763522980792,6.3999,140.73,140.7,3.24889127]
[1763522981094,3.18,140.77,140.7,3.24889127]
[1763522981298,3.18,140.77,140.72,3.2]
[1763522981595,6.399,140.75,140.73,3.24509608]
[1763522982097,9.579,140.75,140.73,3.24509608]
[1763522982599,9.5794,140.74,140.73,0.04509608]
[1763522983398,9.5809,140.71,140.69,2.96538446]
[1763522983795,9.5809,140.71,140.68,40.56]
[1763522984596,9.63369781,140.71,140.68,40.60603241]
[1763522986201,9.63369781,140.71,140.69,3.2]
[1763522986699,6.4012,140.7,140.69,3.2]
[1763522988805,3.23279781,140.71,140.69,3.2]
[1763522988995,0.05279781,140.71,140.69,3.2]
[1763522989197,0.05279781,140.71,140.69,6.16538446]
[1763522990201,0.05279781,140.71,140.7,3.2]
[1763522992296,0.05279781,140.71,140.7,40.56]
[1763522999109,6.3994,140.74,140.71,3.2]
[1763523000109,6.3994,140.74,140.71,3.25295521]
[1763523000507,6.4,140.73,140.71,3.25295521]
[1763523000710,6.4,140.73,140.71,37.39295521]
[1763523000711,3.18,140.72,140.71,37.39295521]
[1763523001007,9.58,140.73,140.71,40.59295521]
[1763523001505,9.58,140.73,140.71,37.39295521]
[1763523001711,9.58,140.73,140.71,40.59295521]
[1763523002808,9.5803,140.72,140.71,0.05295521]
[1763523003013,3.18,140.71,140.66,3.2]
[1763523003712,6.402,140.69,140.67,3.01]
[1763523003908,3.13,140.67,140.6,3.01]
[1763523004108,0.05074915,140.65,140.62,3.0548157]
[1763523004307,0.05074915,140.65,140.64,3.01]
[1763523005613,0.05074915,140.65,140.64,40.35]
[1763523005813,9.58434915,140.65,140.62,6.02020016]
[1763523006013,9.58434915,140.65,140.62,43.36020016]
[1763523007408,9.534,140.64,140.62,0.0448157]
[1763523007615,9.534,140.64,140.62,37.3848157]
[1763523007913,9.534,140.64,140.62,40.3948157]
[1763523008612,6.404,140.64,140.62,40.3948157]
[1763523009211,0.05074915,140.65,140.63,3.01]
[1763523009910,6.4014,140.7,140.64,3.01]
[1763523010212,6.4014,140.7,140.67,3.01]
[1763523010415,3.13,140.71,140.68,40.37]
[1763523010809,3.13,140.71,140.68,42.31725092]
[1763523011014,9.5313,140.7,140.68,0.04994981]
[1763523011213,3.13,140.69,140.68,0.04994981]
[1763523013915,9.5313,140.7,140.68,0.04994981]
[1763523014109,3.13,140.69,140.68,0.04994981]
[1763523014711,6.4013,140.7,140.68,0.04994981]
[1763523014914,6.4013,140.7,140.68,3.05994981]
[1763523015110,3.13,140.7,140.68,3.05994981]
[1763523015316,3.13,140.71,140.68,3.05994981]
[1763523016310,102.6802,140.74,140.69,1.89730111]
[1763523016613,3.13,140.73,140.69,4.90730111]
[1763523016916,3.13,140.72,140.69,4.90730111]
[1763523017121,3.13,140.72,140.69,1.89730111]
[1763523017417,3.13,140.72,140.68,0.04994981]
[1763523017611,3.13,140.69,140.68,0.04994981]
[1763523019014,3.13,140.67,140.64,1.89730111]
[1763523019420,3.13,140.67,140.65,3.01]
[1763523019819,9.5322,140.68,140.65,3.01]
[1763523020020,9.57835962,140.68,140.65,3.06371724]
[1763523020225,6.4026,140.67,140.65,3.06371724]
[1763523021817,9.5326,140.67,140.65,0.05371724]
[1763523024422,3.1,140.66,140.65,0.05371724]
[1763523028020,3.14615962,140.68,140.65,3.03371724]
[1763523028319,0.04615962,140.68,140.65,3.03371724]
[1763523029324,6.44835962,140.68,140.65,3.03371724]
[1763523029514,3.14615962,140.68,140.65,3.03371724]
[1763523030127,0.04615962,140.68,140.65,3.03371724]
[1763523030329,0.04615962,140.68,140.66,2.98]
[1763523031025,3.14615962,140.68,140.65,40.37371724]
[1763523031528,0.04615962,140.68,140.66,2.98]
[1763523031725,3.14615962,140.68,140.66,2.98]
[1763523031925,9.54835962,140.68,140.66,2.98]
[1763523032226,9.54835962,140.68,140.65,40.37371724]
[1763523032824,6.4027,140.67,140.65,40.37371724]
[1763523033128,3.1,140.66,140.65,0.05371724]
[1763523033528,9.5031,140.66,140.65,0.05371724]
[1763523034324,3.23,140.63,140.61,3.15]
[1763523034628,9.6342,140.64,140.61,40.49]
[1763523035229,9.67932419,140.64,140.61,40.54343177]
[1763523036126,6.4044,140.63,140.61,40.54343177]
[1763523037933,9.6349,140.62,140.61,0.05343177]
[1763523038627,6.4059,140.6,140.58,40.49]
[1763523038823,9.6359,140.6,140.58,37.34]
[1763523039121,9.6359,140.6,140.58,40.49]
[1763523039632,9.69023153,140.6,140.58,40.53651063]
[1763523039926,3.23,140.59,140.58,37.38651063]
[1763523040529,9.69023153,140.6,140.58,37.38651063]
[1763523041332,0.05433153,140.6,140.59,3.15]
[1763523042029,0.05433153,140.6,140.58,40.53651063]
[1763523042220,3.28433153,140.6,140.58,40.53651063]
[1763523042423,3.28433153,140.6,140.58,37.38651063]
[1763523042629,0.05433153,140.6,140.58,40.53651063]
[1763523042840,0.05433153,140.6,140.59,3.15]
[1763523043933,0.05433153,140.6,140.59,5.04730111]
[1763523044432,9.6335,140.65,140.6,3.15]
[1763523045035,9.634,140.64,140.6,3.15]
[1763523045229,0.04666841,140.63,140.61,3.20389774]
[1763523046640,9.68106841,140.63,140.61,0.05389774]
[1763523047532,6.45106841,140.63,140.61,3.20389774]
[1763523047739,0.04666841,140.63,140.61,3.20389774]
[1763523051735,3.23,140.69,140.62,1.89730111]
[1763523051934,3.23,140.69,140.64,3.15]
[1763523052746,6.45285376,140.68,140.65,3.20308519]
[1763523053039,9.68285376,140.68,140.65,3.20308519]
[1763523053635,9.6326,140.67,140.65,0.05308519]
[1763523053941,3.23,140.66,140.65,0.05308519]
[1763523054245,0.05065376,140.68,140.65,3.20308519]
[1763523054441,3.28065376,140.68,140.65,3.20308519]
[1763523055144,9.6327,140.67,140.65,0.05308519]
[1763523055345,3.23,140.66,140.65,0.05308519]
[1763523055842,9.6331,140.66,140.65,0.05308519]
[1763523056640,6.4031,140.66,140.65,3.20308519]
[1763523056847,3.23,140.67,140.65,3.20308519]
[1763523057238,3.23,140.67,140.65,0.05308519]
[1763523057540,9.6331,140.66,140.65,0.05308519]
[1763523058147,9.6331,140.66,140.6,1.89730111]
[1763523058148,9.6348,140.63,140.61,37.34]
[1763523058740,6.4048,140.63,140.61,40.49]
[1763523059145,6.45521775,140.63,140.61,40.53641292]
[1763523060545,9.68521775,140.63,140.61,40.53641292]
[1763523060750,6.4049,140.62,140.61,37.38641292]
[1763523061250,6.4049,140.62,140.61,0.04641292]
[1763523061453,9.6349,140.62,140.61,0.04641292]
[1763523061645,3.23,140.61,140.53,5.04730111]
[1763523061845,3.23,140.61,140.54,40.49]
[1763523062151,3.23,140.61,140.55,3.15]
[1763523062352,6.4066,140.59,140.55,3.15]
[1763523062657,0.05208831,140.58,140.56,3.20365211]
[1763523063747,3.16,140.63,140.57,1.89730111]
[1763523064045,9.5649,140.62,140.58,2.96]
[1763523064349,6.4049,140.62,140.58,2.96]
[1763523064856,6.4049,140.62,140.59,3.00784178]
[1763523064857,0.04844477,140.61,140.59,3.00784178]
[1763523066848,0.04844477,140.61,140.6,40.3]
[1763523067345,9.5632,140.66,140.61,2.96]
[1763523068252,0.04738403,140.65,140.62,3.00800502]
[1763523068461,3.16,140.64,140.62,0.04800502]
[1763523069855,3.20738403,140.65,140.62,3.00800502]
[1763523070059,0.04738403,140.65,140.62,3.00800502]
[1763523071754,0.04738403,140.65,140.62,0.04800502]
[1763523071755,3.20738403,140.65,140.62,0.04800502]
[1763523072356,3.16,140.63,140.62,0.04800502]
[1763523074462,6.404,140.64,140.62,0.04800502]
[1763523074664,3.16,140.63,140.62,0.04800502]
[1763523075757,9.564,140.64,140.62,0.04800502]
[1763523076257,3.16,140.63,140.62,0.04800502]
[1763523077258,3.16,140.62,140.58,40.3]
[1763523077453,3.16,140.62,140.55,5.92848967]
[1763523077652,3.16,140.6,140.52,2.96]
[1763523077856,9.5672,140.57,140.55,37.34]
[1763523078256,9.61735491,140.57,140.55,37.39000509]
[1763523079057,3.16,140.56,140.55,37.39000509]
[1763523079259,3.16,140.56,140.55,0.05000509]
[1763523079767,3.21015491,140.57,140.51,40.3]
[1763523079960,3.16,140.57,140.51,40.3]
[1763523080158,3.16,140.56,140.51,40.3]
[1763523080567,3.16,140.56,140.52,2.96]
[1763523080869,3.20892566,140.55,140.53,0.05038136]
[1763523081161,9.61702566,140.55,140.53,0.05038136]
[1763523082155,3.20892566,140.55,140.53,0.05038136]
[1763523082360,0.04892566,140.55,140.53,3.13038136]
[1763523084164,0.04892566,140.55,140.53,40.47038136]
[1763523084374,3.22892566,140.55,140.53,0.05038136]
[1763523085170,3.18,140.54,140.53,0.05038136]
[1763523086365,9.5891,140.53,140.5,37.34]
[1763523086769,3.18,140.53,140.5,37.34]
[1763523087067,9.5896,140.52,140.48,3.08]
[1763523087269,0.04699241,140.51,140.49,37.39014646]
[1763523087467,0.04699241,140.51,140.49,0.05014646]
[1763523087468,3.18,140.5,140.49,0.05014646]
[1763523087871,3.18,140.5,140.46,37.34]
[1763523088170,9.591,140.49,140.46,37.34]
[1763523088369,0.04699241,140.51,140.39,3.08]
[1763523088370,3.18,140.48,140.39,3.08]
[1763523088664,3.18,140.48,140.41,3.08]
[1763523088869,0.04875153,140.46,140.44,3.08]
[1763523089670,0.04875153,140.46,140.43,3.13101554]
[1763523091173,0.04875153,140.46,140.44,40.44]
[1763523091567,0.04875153,140.46,140.45,3.08]
[1763523092175,3.18,140.55,140.47,3.08]
[1763523092672,6.4079,140.56,140.49,3.08]
[1763523092871,3.18,140.58,140.51,3.08]
[1763523093282,3.229783,140.56,140.53,0.05346475]
[1763523093476,6.457583,140.56,140.53,0.05346475]
[1763523093673,3.01,140.55,140.53,0.05346475]
[1763523095179,9.467583,140.56,140.53,0.05346475]
[1763523095580,3.059783,140.56,140.53,0.05346475]
[1763523096075,9.467483,140.56,140.53,0.05346475]
[1763523096573,3.059783,140.56,140.53,3.13346475]
[1763523097270,0.049783,140.56,140.53,3.13346475]
[1763523099981,99.615,140.65,140.53,3.13346475]
[1763523099982,3.01,140.62,140.54,3.08]
[1763523100377,3.01,140.65,140.57,3.08]
[1763523100584,3.01,140.65,140.59,3.08]
[1763523100781,99.5867,140.69,140.61,0.04712557]
[1763523100782,3.06452822,140.63,140.61,0.04712557]
[1763523100982,3.01,140.62,140.58,20.64]
[1763523101381,6.4054,140.61,140.58,20.64]
[1763523101684,3.01,140.62,140.59,3.08]
[1763523101881,3.05998962,140.63,140.59,3.08]
[1763523102085,3.01,140.62,140.6,0.04832652]
[1763523102278,3.01,140.6,140.56,37.34]
[1763523102771,6.4064,140.59,140.56,40.42]
[1763523103277,9.4157,140.61,140.57,3.08]
[1763523103483,0.0470448,140.6,140.58,0.05257549]
[1763523103690,3.01,140.67,140.58,3.13257549]
[1763523103889,3.01,140.67,140.58,3.08]
[1763523104088,3.01,140.66,140.58,3.08]
[1763523104585,6.4045,140.63,140.58,3.08]
[1763523104785,3.05587131,140.62,140.59,0.05410867]
[1763523104982,3.05587131,140.62,140.59,37.39410867]
[1763523105286,0.04587131,140.62,140.6,3.08]
[1763523106990,3.05587131,140.62,140.59,37.39410867]
[1763523107187,3.05587131,140.62,140.59,40.47410867]
[1763523107388,9.46097131,140.62,140.59,40.47410867]
[1763523108187,6.45097131,140.62,140.59,40.47410867]
[1763523108382,0.04587131,140.62,140.6,3.08]
[1763523110793,3.01,140.61,140.59,37.39410867]
[1763523111294,9.4155,140.61,140.59,37.39410867]
[1763523111896,9.4155,140.61,140.59,0.05410867]
[1763523112091,9.4167,140.58,140.53,3.08]
[1763523112286,9.4167,140.58,140.55,3.08]
[1763523112791,6.4073,140.57,140.55,3.08]
[1763523113090,6.4073,140.57,140.54,40.42]
[1763523113290,3.01,140.56,140.54,0.04591998]
[1763523113497,9.4177,140.56,140.54,0.04591998]
[1763523113795,6.4077,140.56,140.54,0.04591998]
[1763523114693,0.04532224,140.57,140.54,3.12591998]
[1763523117905,0.04532224,140.57,140.55,3.08]
[1763523118501,0.04532224,140.57,140.54,0.04591998]
[1763523118502,3.05532224,140.57,140.54,0.04591998]
[1763523118797,3.05532224,140.57,140.49,3.08]
[1763523119003,0.04532224,140.57,140.53,3.08]
[1763523119189,102.6616,140.6,140.53,3.08]
[1763523119395,3.01,140.56,140.52,37.34]
[1763523119595,3.01,140.54,140.53,0.04930767]
[1763523120203,0.04623683,140.55,140.53,0.04930767]
[1763523121096,3.01,140.54,140.53,0.04930767]
[1763523121603,0.04623683,140.55,140.53,3.12930767]
[1763523121802,3.05623683,140.55,140.53,0.04930767]
[1763523122006,3.01,140.53,140.5,37.34]
[1763523122214,6.4099,140.51,140.5,37.34]
[1763523122912,3.06254564,140.52,140.5,37.34]
[1763523123105,0.05254564,140.52,140.5,40.42]
[1763523124710,6.46204564,140.52,140.5,40.42]
[1763523124906,0.05254564,140.52,140.5,40.42]
[1763523126007,6.46214564,140.52,140.5,40.42]
[1763523128214,6.41,140.51,140.49,0.05309484]
[1763523128408,9.42,140.51,140.49,0.05309484]
[1763523128607,3.01,140.5,140.49,0.05309484]
[1763523129205,3.01,140.49,140.46,37.34]
[1763523129716,6.4117,140.47,140.46,37.34]
[1763523131321,0.04744947,140.48,140.46,37.34]
[1763523131518,0.04744947,140.48,140.47,3.1]
[1763523134909,0.04744947,140.48,140.46,37.34]
[1763523135114,0.04744947,140.48,140.47,3.1]
[1763523140619,0.04744947,140.48,140.47,40.46]
[1763523141229,3.05744947,140.48,140.47,37.36]
[1763523141427,3.05744947,140.48,140.45,0.05231461]
[1763523141428,6.4119,140.47,140.45,40.51231461]
[1763523142229,6.4119,140.47,140.45,37.41231461]
[1763523142532,9.6219,140.47,140.45,37.41231461]
[1763523144728,6.4119,140.47,140.45,37.41231461]
[1763523145632,9.6219,140.47,140.45,37.41231461]
[1763523146232,9.6219,140.47,140.45,0.05231461]
[1763523147430,3.21,140.46,140.45,0.05231461]
[1763523148333,9.6222,140.46,140.45,0.05231461]
[1763523149634,6.45914947,140.48,140.45,3.02231461]
[1763523149835,3.25744947,140.48,140.45,0.05231461]
[1763523150333,0.04744947,140.48,140.45,3.02231461]
[1763523151328,0.04744947,140.48,140.45,40.38231461]
[1763523151829,0.04744947,140.48,140.46,2.97]
[1763523152038,3.25744947,140.48,140.45,37.41231461]
[1763523152235,3.25744947,140.48,140.45,40.38231461]
[1763523152534,6.4117,140.47,140.45,40.38231461]
[1763523152735,3.25744947,140.48,140.45,37.41231461]
[1763523153738,9.6422,140.46,140.45,0.05231461]
[1763523154636,6.4122,140.46,140.45,0.05231461]
[1763523156041,9.6422,140.46,140.45,0.05231461]
[1763523160041,0.04744947,140.48,140.45,3.14231461]
[1763523161544,3.27744947,140.48,140.45,0.05231461]
[1763523161939,6.4117,140.47,140.45,0.05231461]
[1763523162140,0.04744947,140.48,140.45,3.14231461]
[1763523162348,3.27744947,140.48,140.45,0.05231461]
[1763523162951,9.6417,140.47,140.45,0.05231461]
[1763523163150,3.27744947,140.48,140.45,0.05231461]
[1763523163548,6.4122,140.46,140.45,0.05231461]
[1763523165252,6.4122,140.46,140.45,3.14231461]
[1763523165945,6.4122,140.46,140.45,0.05231461]
[1763523166653,9.6422,140.46,140.45,0.05231461]
[1763523167451,6.4122,140.46,140.45,3.14231461]
[1763523167649,3.27744947,140.48,140.45,0.05231461]
[1763523167843,3.27744947,140.48,140.45,3.14231461]
[1763523168156,0.04744947,140.48,140.45,3.14231461]
[1763523169948,3.27744947,140.48,140.45,3.14231461]
[1763523170855,9.68874947,140.48,140.45,3.14231461]
[1763523171055,3.27744947,140.48,140.45,0.05231461]
[1763523171354,3.27744947,140.48,140.45,3.14231461]
[1763523171549,9.6417,140.47,140.45,0.05231461]
[1763523171761,3.23,140.46,140.39,4.32922798]
[1763523171951,3.23,140.46,140.4,37.36]
[1763523172351,3.23,140.42,140.4,37.36]
[1763523172760,3.28421692,140.42,140.4,37.40523449]
[1763523173055,0.05421692,140.42,140.4,37.40523449]
[1763523173658,6.46831692,140.42,140.4,37.40523449]
[1763523173959,9.69831692,140.42,140.4,37.40523449]
[1763523174255,3.23,140.41,140.4,0.04523449]
[1763523175354,9.69831692,140.42,140.4,0.04523449]
[1763523175552,3.23,140.41,140.4,0.04523449]
[1763523180458,3.23,140.41,140.38,2.03003734]
[1763523180459,3.23,140.39,140.38,7.183e-05]
[1763523184767,9.6249,140.4,140.38,7.183e-05]
[1763523185159,6.4149,140.4,140.38,3.18007183]
[1763523185360,6.4149,140.4,140.38,7.183e-05]
[1763523186164,9.6249,140.4,140.38,7.183e-05]
[1763523186368,6.4149,140.4,140.38,7.183e-05]
[1763523186865,6.46861692,140.42,140.38,7.183e-05]
[1763523187258,9.67861692,140.42,140.38,7.183e-05]
[1763523187460,0.05421692,140.42,140.38,7.183e-05]
[1763523187859,0.05421692,140.42,140.39,3.18]
[1763523189571,0.05421692,140.42,140.39,9.5953]
[1763523189768,0.05421692,140.42,140.39,3.18]
[1763523191170,0.05421692,140.42,140.41,3.18]
[1763523194075,0.05421692,140.42,140.4,0.05191913]
[1763523194266,0.05421692,140.42,140.4,3.23191913]
[1763523195783,3.26421692,140.42,140.4,0.05191913]
[1763523196174,0.05421692,140.42,140.4,3.23191913]
[1763523196881,6.46831692,140.42,140.4,3.23191913]
[1763523197083,6.46831692,140.42,140.4,40.63191913]
[1763523197278,6.46831692,140.42,140.4,3.23191913]
[1763523197480,6.46831692,140.42,140.4,40.63191913]
[1763523198581,9.67831692,140.42,140.4,0.05191913]
[1763523198879,9.67831692,140.42,140.4,37.45191913]
[1763523199786,6.46831692,140.42,140.4,37.45191913]
[1763523199984,6.46831692,140.42,140.4,40.63191913]
[1763523200483,0.05421692,140.42,140.41,3.18]
[1763523201688,3.26421692,140.42,140.4,37.45191913]
[1763523202290,9.67821692,140.42,140.4,37.45191913]
[1763523203189,9.67821692,140.42,140.4,0.05191913]
[1763523204285,0.05421692,140.42,140.4,3.03191913]
[1763523204786,3.01,140.48,140.4,3.03191913]
[1763523205086,3.01,140.48,140.4,2.98]
[1763523205583,0.0453448,140.45,140.43,0.04640533]
[1763523205883,6.4580448,140.45,140.43,0.04640533]
[1763523206086,3.0553448,140.45,140.43,0.04640533]
[1763523206983,9.4231,140.44,140.43,0.04640533]
[1763523211090,3.01,140.44,140.43,0.04640533]
[1763523211688,9.4231,140.44,140.43,0.04640533]
[1763523212681,0.0453448,140.45,140.43,3.02640533]
[1763523212887,3.35,140.49,140.44,2.98]
[1763523213090,3.35,140.49,140.46,2.98]
[1763523213290,6.7512,140.49,140.46,2.98]
[1763523213588,0.34,140.49,140.46,2.98]
[1763523213786,0.39442613,140.49,140.46,3.0329913]
[1763523213982,3.59442613,140.49,140.46,3.0329913]
[1763523214591,3.2,140.48,140.46,0.0529913]
[1763523215890,9.6117,140.47,140.46,0.0529913]
[1763523217078,0.39442613,140.49,140.46,0.0529913]
[1763523217284,9.6113,140.48,140.46,0.0529913]
[1763523217784,3.2,140.47,140.46,0.0529913]
[1763523221893,9.6117,140.47,140.46,0.0529913]
[1763523227995,6.4113,140.48,140.46,3.0629913]
[1763523228199,0.05442613,140.49,140.46,3.0629913]
[1763523229606,3.25442613,140.49,140.46,0.0529913]
[1763523230898,9.6113,140.48,140.46,0.0529913]
[1763523231401,6.4113,140.48,140.46,3.0629913]
[1763523232503,9.6113,140.48,140.46,0.0529913]
[1763523233104,9.6113,140.48,140.46,3.0629913]
[1763523233800,0.05442613,140.49,140.46,3.0629913]
[1763523233801,3.25442613,140.49,140.46,3.0629913]
[1763523234903,9.66522613,140.49,140.46,3.0629913]
[1763523235300,0.05442613,140.49,140.46,3.0629913]
[1763523235495,0.35,140.51,140.47,3.01]
[1763523235695,0.35,140.51,140.48,3.01]
[1763523236402,0.40189514,140.51,140.48,3.01]
[1763523238801,0.40189514,140.51,140.49,3.01]
[1763523239815,3.2,140.57,140.49,3.01]
[1763523240002,3.2,140.57,140.5,3.01]
[1763523240203,3.2,140.57,140.52,3.01]
[1763523240401,9.6073,140.57,140.53,3.01]
[1763523240601,3.2,140.57,140.53,3.01]
[1763523240798,0.04844936,140.56,140.54,0.05322238]
[1763523241198,3.24844936,140.56,140.54,37.41322238]
[1763523241400,3.24844936,140.56,140.54,0.05322238]
[1763523241695,9.65624936,140.56,140.54,0.05322238]
[1763523241900,3.2,140.55,140.54,0.05322238]
[1763523246711,3.24,140.53,140.47,3.03]
[1763523246912,3.24,140.53,140.48,40.39]
[1763523247509,3.24,140.53,140.49,3.03]
[1763523247712,0.04644876,140.52,140.5,0.05382133]
[1763523247910,6.4099,140.51,140.5,0.05382133]
[1763523249113,0.04644876,140.52,140.5,3.08382133]
[1763523249308,3.28644876,140.52,140.5,0.05382133]
[1763523250914,3.28644876,140.52,140.41,3.03]
[1763523250915,3.24,140.48,140.41,3.03]
[1763523251207,3.24,140.48,140.42,40.39]
[1763523251512,6.4128,140.45,140.43,3.03]
[1763523251910,3.24,140.44,140.43,0.05171754]
[1763523253015,3.24,140.43,140.38,37.36007183]
[1763523253314,3.24,140.43,140.38,40.39007183]
[1763523253610,6.4151,140.4,140.38,40.39007183]
[1763523253806,3.24,140.43,140.38,40.39007183]
[1763523254114,3.28551752,140.42,140.39,0.0498354]
[1763523254515,6.4146,140.41,140.39,0.0498354]
[1763523254914,9.6546,140.41,140.39,0.0498354]
[1763523255213,3.24,140.4,140.39,0.0498354]
[1763523258318,6.4146,140.41,140.39,0.0498354]
[1763523258516,9.6546,140.41,140.39,0.0498354]
[1763523259118,3.24,140.4,140.39,0.0498354]
[1763523259418,3.24,140.32,140.27,3.03]
[1763523259609,3.24,140.32,140.28,3.03]
[1763523260214,9.6587,140.32,140.28,3.03]
[1763523260420,0.05194343,140.31,140.29,3.07742604]
[1763523260717,0.05305037,140.31,140.3,3.03]